[Event "World Junior Chess Championship U20 2022"]
[White "Svane, Frederik"]
[Black "Gadimbayli, Abdulla"]
[WhiteFideId "12923044"]
[BlackFideId "13404938"]
[WhiteElo "2566"]
[BlackElo "2499"]
[Result "1/2-1/2"]
[Round "04"]
[TimeControl "5400+30"]
[Date "2022.10.14"]
[WhiteClock "0:01:40"]
[BlackClock "0:16:15"]

1. e4 {[%clk 1:30:20]}  e6 {[%clk 1:30:49]} 2. d4 {[%clk 1:30:39]}  d5 {[%clk 1:31:13]} 3. e5 {[%clk 1:31:05]}  c5 {[%clk 1:31:08]} 4. c3 {[%clk 1:31:23]}  Bd7 {[%clk 1:31:10]} 5. Nf3 {[%clk 1:31:40]}  Qb6 {[%clk 1:31:23]} 6. Be2 {[%clk 1:31:57]}  Bb5 {[%clk 1:27:54]} 7. dxc5 {[%clk 1:32:13]}  Bxc5 {[%clk 1:28:18]} 8. b4 {[%clk 1:32:37]}  Bxf2+ {[%clk 1:25:42]} 9. Kf1 {[%clk 1:33:02]}  Bc6 {[%clk 1:23:46]} 10. a4 {[%clk 1:33:25]}  a6 {[%clk 1:23:49]} 11. a5 {[%clk 1:32:39]}  Qa7 {[%clk 1:24:14]} 12. Na3 {[%clk 1:33:03]}  Be3 {[%clk 1:24:13]} 13. b5 {[%clk 1:32:22]}  axb5 {[%clk 1:24:38]} 14. Nxb5 {[%clk 1:32:45]}  Bxb5 {[%clk 1:25:02]} 15. Bxb5+ {[%clk 1:33:08]}  Nc6 {[%clk 1:25:28]} 16. Bxe3 {[%clk 1:06:26]}  Qxe3 {[%clk 1:25:46]} 17. a6 {[%clk 1:06:07]}  Qa7 {[%clk 1:24:22]} 18. Nd4 {[%clk 0:52:04]}  Ne7 {[%clk 1:23:09]} 19. Rb1 {[%clk 0:51:19]}  bxa6 {[%clk 1:20:07]} 20. Bxc6+ {[%clk 0:49:34]}  Nxc6 {[%clk 1:20:33]} 21. Qa4 {[%clk 0:46:32]}  O-O {[%clk 1:20:49]} 22. Qxc6 {[%clk 0:46:58]}  Rfc8 {[%clk 1:21:13]} 23. Rb7 {[%clk 0:46:16]}  Rxc6 {[%clk 1:21:38]} 24. Rxa7 {[%clk 0:46:43]}  Rxa7 {[%clk 1:22:02]} 25. Nxc6 {[%clk 0:47:08]}  Rc7 {[%clk 1:19:11]} 26. Nd4 {[%clk 0:47:14]}  Rxc3 {[%clk 1:19:35]} 27. Ke2 {[%clk 0:45:58]}  Rc4 {[%clk 1:01:27]} 28. Kd3 {[%clk 0:33:48]}  a5 {[%clk 0:55:48]} 29. Rb1 {[%clk 0:32:38]}  g5 {[%clk 0:51:59]} 30. Rb7 {[%clk 0:31:46]}  a4 {[%clk 0:47:08]} 31. Ra7 {[%clk 0:30:21]}  Rb4 {[%clk 0:30:36]} 32. Kc3 {[%clk 0:22:12]}  Rc4+ {[%clk 0:31:04]} 33. Kd3 {[%clk 0:22:36]}  Rb4 {[%clk 0:31:30]} 34. Nc6 {[%clk 0:19:33]}  Rb2 {[%clk 0:21:27]} 35. Nd8 {[%clk 0:18:41]}  Rf2 {[%clk 0:21:36]} 36. Ke3 {[%clk 0:11:42]}  Rf5 {[%clk 0:11:26]} 37. Nc6 {[%clk 0:10:17]}  Rf4 {[%clk 0:08:25]} 38. g3 {[%clk 0:09:12]}  Re4+ {[%clk 0:04:02]} 39. Kd3 {[%clk 0:09:37]}  Kg7 {[%clk 0:02:47]} 40. Nd8 {[%clk 0:07:28]}  Kg6 {[%clk 0:02:28]} 41. Nxf7 {[%clk 0:06:37]}  h5 {[%clk 0:01:11]} 42. Nd6 {[%clk 0:18:42]}  Rxe5 {[%clk 0:31:17]} 43. Kd2 {[%clk 0:18:35]}  Kf6 {[%clk 0:23:04]} 44. Rf7+ {[%clk 0:18:59]}  Kg6 {[%clk 0:23:31]} 45. Ra7 {[%clk 0:19:26]}  Kf6 {[%clk 0:23:58]} 46. h3 {[%clk 0:05:24]}  a3 {[%clk 0:21:05]} 47. Rxa3 {[%clk 0:05:28]}  Ke7 {[%clk 0:21:32]} 48. Ra6 {[%clk 0:03:41]}  Kd7 {[%clk 0:18:01]} 49. Nf7 {[%clk 0:03:13]}  Rf5 {[%clk 0:17:07]} 50. Ra7+ {[%clk 0:03:39]}  Kc6 {[%clk 0:17:35]} 51. Nd8+ {[%clk 0:04:03]}  Kd6 {[%clk 0:13:34]} 52. Ra6+ {[%clk 0:04:26]}  Ke7 {[%clk 0:14:03]} 53. Nxe6 {[%clk 0:04:40]}  Rf6 {[%clk 0:14:22]} 54. Nc5 {[%clk 0:02:16]}  Rf2+ {[%clk 0:14:19]} 55. Ke3 {[%clk 0:01:35]}  Rh2 {[%clk 0:14:47]} 56. Kf3 {[%clk 0:01:22]}  h4 {[%clk 0:12:59]} 57. Kg4 {[%clk 0:01:48]}  hxg3 {[%clk 0:13:25]} 58. Kxg3 {[%clk 0:02:04]}  Rc2 {[%clk 0:13:31]} 59. Ne6 {[%clk 0:01:56]}  Rc3+ {[%clk 0:13:30]} 60. Kg4 {[%clk 0:02:19]}  d4 {[%clk 0:13:58]} 61. Nxg5 {[%clk 0:02:33]}  d3 {[%clk 0:14:27]} 62. Ra4 {[%clk 0:02:15]}  d2 {[%clk 0:14:43]} 63. Re4+ {[%clk 0:00:57]}  Kf8 {[%clk 0:15:11]} 64. Rd4 {[%clk 0:01:01]}  Rc4 {[%clk 0:15:35]} 65. Rxc4 {[%clk 0:01:16]}  d1=Q+ {[%clk 0:16:02]} 66. Nf3 {[%clk 0:01:40]}  Qd7+ {[%clk 0:16:15]} 1/2-1/2


[Site "http://www.chessbomb.com"]

[Event "World Junior Chess Championship U20 2022"]
[White "Kozak, Adam"]
[Black "Samunenkov, Ihor"]
[WhiteFideId "753246"]
[BlackFideId "14187086"]
[WhiteElo "2516"]
[BlackElo "2473"]
[Result "1/2-1/2"]
[Round "04"]
[TimeControl "5400+30"]
[Date "2022.10.14"]
[WhiteClock "0:21:40"]
[BlackClock "0:32:51"]

1. d4 {[%clk 1:30:44]}  d5 {[%clk 1:30:50]} 2. c4 {[%clk 1:30:57]}  e6 {[%clk 1:31:13]} 3. Nf3 {[%clk 1:29:30]}  Nf6 {[%clk 1:31:32]} 4. Nc3 {[%clk 1:29:41]}  a6 {[%clk 1:31:56]} 5. cxd5 {[%clk 1:29:45]}  exd5 {[%clk 1:32:22]} 6. Bg5 {[%clk 1:30:06]}  Be6 {[%clk 1:32:46]} 7. e3 {[%clk 1:30:26]}  Nbd7 {[%clk 1:33:05]} 8. h3 {[%clk 1:30:50]}  c6 {[%clk 1:29:25]} 9. Bd3 {[%clk 1:31:04]}  Bd6 {[%clk 1:29:21]} 10. Bf4 {[%clk 1:31:16]}  Qc7 {[%clk 1:29:39]} 11. Qd2 {[%clk 1:31:37]}  O-O {[%clk 1:28:03]} 12. O-O {[%clk 1:31:56]}  Rfe8 {[%clk 1:27:28]} 13. Rfe1 {[%clk 1:32:16]}  Nb6 {[%clk 1:25:58]} 14. b3 {[%clk 1:32:29]}  Rad8 {[%clk 1:19:55]} 15. Bxd6 {[%clk 1:22:32]}  Qxd6 {[%clk 1:19:05]} 16. Rac1 {[%clk 1:19:57]}  Qe7 {[%clk 1:14:56]} 17. Qc2 {[%clk 1:15:54]}  g6 {[%clk 1:12:31]} 18. Ne5 {[%clk 1:10:02]}  Nc8 {[%clk 1:07:32]} 19. f4 {[%clk 0:59:37]}  Nd6 {[%clk 1:06:22]} 20. g4 {[%clk 0:58:05]}  Bc8 {[%clk 0:46:40]} 21. Qg2 {[%clk 0:52:57]}  Nfe4 {[%clk 0:44:41]} 22. Bxe4 {[%clk 0:46:57]}  dxe4 {[%clk 0:44:50]} 23. Kh2 {[%clk 0:39:57]}  Kg7 {[%clk 0:42:40]} 24. Rf1 {[%clk 0:34:52]}  f6 {[%clk 0:35:05]} 25. Nc4 {[%clk 0:34:37]}  Nf7 {[%clk 0:35:22]} 26. Nd2 {[%clk 0:31:13]}  Nd6 {[%clk 0:34:01]} 27. Nc4 {[%clk 0:24:09]}  Nf7 {[%clk 0:33:17]} 28. Nd2 {[%clk 0:22:22]}  Nd6 {[%clk 0:32:51]} 29. Nc4 {[%clk 0:21:40]} 1/2-1/2


[Site "http://www.chessbomb.com"]

[Event "World Junior Chess Championship U20 2022"]
[White "Kacharava, Nikolozi"]
[Black "Ivic, Velimir"]
[WhiteFideId "13611860"]
[BlackFideId "950122"]
[WhiteElo "2512"]
[BlackElo "2553"]
[Result "1/2-1/2"]
[Round "04"]
[TimeControl "5400+30"]
[Date "2022.10.14"]
[WhiteClock "0:11:55"]
[BlackClock "0:10:14"]

1. e4 {[%clk 1:30:36]}  c5 {[%clk 1:30:15]} 2. Nf3 {[%clk 1:30:24]}  Nc6 {[%clk 1:30:24]} 3. Bb5 {[%clk 1:29:55]}  e6 {[%clk 1:30:10]} 4. O-O {[%clk 1:29:25]}  Nge7 {[%clk 1:30:30]} 5. d4 {[%clk 1:28:38]}  cxd4 {[%clk 1:30:48]} 6. Nxd4 {[%clk 1:28:48]}  Ng6 {[%clk 1:30:34]} 7. Be3 {[%clk 1:28:06]}  Be7 {[%clk 1:29:54]} 8. Be2 {[%clk 1:27:43]}  O-O {[%clk 1:29:17]} 9. c4 {[%clk 1:27:22]}  b6 {[%clk 1:29:02]} 10. Nc3 {[%clk 1:26:36]}  Bb7 {[%clk 1:28:55]} 11. Nb3 {[%clk 1:24:14]}  Qc7 {[%clk 1:28:28]} 12. f4 {[%clk 1:16:59]}  Rad8 {[%clk 1:25:19]} 13. Qd2 {[%clk 1:12:11]}  Rfe8 {[%clk 1:20:44]} 14. Rad1 {[%clk 1:08:23]}  d6 {[%clk 1:20:00]} 15. g3 {[%clk 1:01:28]}  Qb8 {[%clk 1:18:39]} 16. a3 {[%clk 0:48:57]}  Nf8 {[%clk 1:14:30]} 17. Qe1 {[%clk 0:40:23]}  Bf6 {[%clk 1:09:23]} 18. g4 {[%clk 0:35:12]}  Bxc3 {[%clk 0:48:49]} 19. Qxc3 {[%clk 0:33:53]}  d5 {[%clk 0:49:03]} 20. cxd5 {[%clk 0:28:36]}  exd5 {[%clk 0:48:53]} 21. e5 {[%clk 0:26:57]}  Ne6 {[%clk 0:27:24]} 22. Nd4 {[%clk 0:21:44]}  Ncxd4 {[%clk 0:26:33]} 23. Bxd4 {[%clk 0:22:10]}  f6 {[%clk 0:25:24]} 24. Bb5 {[%clk 0:11:53]}  Nxd4 {[%clk 0:24:12]} 25. Rxd4 {[%clk 0:10:15]}  fxe5 {[%clk 0:23:47]} 26. fxe5 {[%clk 0:10:26]}  Rxe5 {[%clk 0:20:37]} 27. Rdf4 {[%clk 0:10:44]}  a6 {[%clk 0:13:20]} 28. Bd3 {[%clk 0:08:58]}  Re7 {[%clk 0:10:10]} 29. Qc2 {[%clk 0:08:25]}  g6 {[%clk 0:08:53]} 30. Qf2 {[%clk 0:04:25]}  Qc8 {[%clk 0:01:37]} 31. Qxb6 {[%clk 0:04:07]}  Rde8 {[%clk 0:01:53]} 32. Qd4 {[%clk 0:03:20]}  Re1 {[%clk 0:01:26]} 33. Rxe1 {[%clk 0:02:23]}  Rxe1+ {[%clk 0:01:55]} 34. Rf1 {[%clk 0:02:18]}  Qe6 {[%clk 0:00:37]} 35. Rxe1 {[%clk 0:01:47]}  Qxe1+ {[%clk 0:01:04]} 36. Bf1 {[%clk 0:01:22]}  a5 {[%clk 0:00:44]} 37. Qb6 {[%clk 0:00:51]}  Qe7 {[%clk 0:00:47]} 38. Qd4 {[%clk 0:00:59]}  Qe1 {[%clk 0:00:34]} 39. Kg2 {[%clk 0:00:51]}  Kf7 {[%clk 0:00:33]} 40. Qf4+ {[%clk 0:00:40]}  Ke6 {[%clk 0:00:39]} 41. Qd4 {[%clk 0:28:58]}  Bc6 {[%clk 0:20:23]} 42. b4 {[%clk 0:20:15]}  axb4 {[%clk 0:20:08]} 43. axb4 {[%clk 0:20:16]}  Qe5 {[%clk 0:18:35]} 44. Qc5 {[%clk 0:13:34]}  Qe4+ {[%clk 0:16:59]} 45. Kg3 {[%clk 0:11:33]}  Qe1+ {[%clk 0:10:16]} 46. Kg2 {[%clk 0:11:34]}  Qe4+ {[%clk 0:10:17]} 47. Kg3 {[%clk 0:11:32]}  Qe1+ {[%clk 0:09:48]} 48. Kg2 {[%clk 0:11:55]}  Qe4+ {[%clk 0:10:14]} 1/2-1/2


[Site "http://www.chessbomb.com"]

[Event "World Junior Chess Championship U20 2022"]
[White "Esipenko, Andrey"]
[Black "Stoyanov, Tsvetan"]
[WhiteFideId "24175439"]
[BlackFideId "2917173"]
[WhiteElo "2668"]
[BlackElo "2449"]
[Result "1-0"]
[Round "04"]
[TimeControl "5400+30"]
[Date "2022.10.14"]
[WhiteClock "0:11:05"]
[BlackClock "0:02:05"]

1. e4 {[%clk 1:30:54]}  c5 {[%clk 1:30:55]} 2. Nf3 {[%clk 1:30:59]}  d6 {[%clk 1:30:56]} 3. Bb5+ {[%clk 1:30:58]}  Nd7 {[%clk 1:31:11]} 4. Ba4 {[%clk 1:31:08]}  Nf6 {[%clk 1:30:24]} 5. O-O {[%clk 1:31:21]}  e6 {[%clk 1:26:28]} 6. d3 {[%clk 1:31:04]}  Be7 {[%clk 1:25:36]} 7. c4 {[%clk 1:31:18]}  O-O {[%clk 1:25:25]} 8. Nc3 {[%clk 1:31:41]}  a6 {[%clk 1:11:47]} 9. h3 {[%clk 1:24:53]}  Nb8 {[%clk 1:02:41]} 10. a3 {[%clk 1:12:55]}  Bd7 {[%clk 1:00:46]} 11. Bd2 {[%clk 1:10:18]}  Nc6 {[%clk 0:52:01]} 12. Rb1 {[%clk 1:08:50]}  Na7 {[%clk 0:47:24]} 13. b4 {[%clk 1:05:28]}  b5 {[%clk 0:45:50]} 14. Bb3 {[%clk 1:05:36]}  cxb4 {[%clk 0:37:11]} 15. axb4 {[%clk 1:04:55]}  Nc6 {[%clk 0:37:11]} 16. Bc2 {[%clk 1:02:19]}  Ne5 {[%clk 0:32:39]} 17. cxb5 {[%clk 0:58:31]}  Nxf3+ {[%clk 0:31:48]} 18. Qxf3 {[%clk 0:58:48]}  Bxb5 {[%clk 0:30:55]} 19. Rfd1 {[%clk 0:43:59]}  Qb6 {[%clk 0:26:37]} 20. Nxb5 {[%clk 0:40:12]}  axb5 {[%clk 0:24:30]} 21. Bb3 {[%clk 0:39:33]}  Rfc8 {[%clk 0:24:08]} 22. Qe2 {[%clk 0:38:58]}  Qb7 {[%clk 0:19:09]} 23. h4 {[%clk 0:36:58]}  Bd8 {[%clk 0:15:34]} 24. Bf4 {[%clk 0:35:18]}  d5 {[%clk 0:11:43]} 25. e5 {[%clk 0:33:57]}  Nd7 {[%clk 0:12:10]} 26. h5 {[%clk 0:34:15]}  Be7 {[%clk 0:07:01]} 27. d4 {[%clk 0:31:29]}  Bxb4 {[%clk 0:06:22]} 28. Bc2 {[%clk 0:31:31]}  Bf8 {[%clk 0:06:30]} 29. Rb3 {[%clk 0:25:58]}  b4 {[%clk 0:05:14]} 30. Rg3 {[%clk 0:26:14]}  Ra3 {[%clk 0:05:14]} 31. Bd3 {[%clk 0:26:36]}  Kh8 {[%clk 0:02:11]} 32. Qg4 {[%clk 0:23:49]}  f5 {[%clk 0:01:20]} 33. exf6 {[%clk 0:22:43]}  Nxf6 {[%clk 0:01:48]} 34. Qxe6 {[%clk 0:21:53]}  Re8 {[%clk 0:01:15]} 35. Qf5 {[%clk 0:21:57]}  Qd7 {[%clk 0:00:43]} 36. Qxd7 {[%clk 0:17:44]}  Nxd7 {[%clk 0:01:12]} 37. h6 {[%clk 0:17:49]}  g6 {[%clk 0:00:37]} 38. Bb5 {[%clk 0:18:08]}  Rxg3 {[%clk 0:00:34]} 39. Bxg3 {[%clk 0:06:14]}  Re7 {[%clk 0:00:59]} 40. Bf4 {[%clk 0:06:24]}  Rf7 {[%clk 0:00:37]} 41. g3 {[%clk 0:04:14]}  Nf6 {[%clk 0:18:17]} 42. Ra1 {[%clk 0:30:40]}  g5 {[%clk 0:11:19]} 43. Bxg5 {[%clk 0:25:57]}  Ne4 {[%clk 0:11:45]} 44. Bf4 {[%clk 0:13:21]}  Nc3 {[%clk 0:10:34]} 45. Bd3 {[%clk 0:13:30]}  b3 {[%clk 0:03:44]} 46. Ra8 {[%clk 0:13:36]}  b2 {[%clk 0:03:19]} 47. Be5+ {[%clk 0:13:31]}  Kg8 {[%clk 0:03:48]} 48. Rb8 {[%clk 0:13:52]}  b1=Q+ {[%clk 0:01:41]} 49. Bxb1 {[%clk 0:14:14]}  Nxb1 {[%clk 0:02:08]} 50. Rxb1 {[%clk 0:14:37]}  Bxh6 {[%clk 0:02:34]} 51. Rb8+ {[%clk 0:13:55]}  Rf8 {[%clk 0:03:00]} 52. Rb6 {[%clk 0:12:36]}  Bd2 {[%clk 0:01:39]} 53. Rd6 {[%clk 0:12:04]}  Be1 {[%clk 0:01:47]} 54. Bf4 {[%clk 0:12:25]}  Rf5 {[%clk 0:02:03]} 55. Kf1 {[%clk 0:12:34]}  Bc3 {[%clk 0:01:35]} 56. Be5 {[%clk 0:12:56]}  Kf7 {[%clk 0:01:35]} 57. f4 {[%clk 0:11:05]}  h5 {[%clk 0:01:48]} 58. Ke2 {[%clk 0:10:56]}  Bb4 {[%clk 0:02:05]} 59. Rxd5 {[%clk 0:11:05]} 1-0


[Site "http://www.chessbomb.com"]

[Event "World Junior Chess Championship U20 2022"]
[White "Murzin, Volodar"]
[Black "Ghimpu, Samuel-Timotei"]
[WhiteFideId "44155573"]
[BlackFideId "1238175"]
[WhiteElo "2557"]
[BlackElo "2434"]
[Result "1-0"]
[Round "04"]
[TimeControl "5400+30"]
[Date "2022.10.14"]
[WhiteClock "0:22:18"]
[BlackClock "0:28:45"]

1. e4 {[%clk 1:30:57]}  e6 {[%clk 1:30:48]} 2. d4 {[%clk 1:31:18]}  d5 {[%clk 1:31:12]} 3. Nc3 {[%clk 1:31:44]}  Nf6 {[%clk 1:31:36]} 4. Bg5 {[%clk 1:32:05]}  dxe4 {[%clk 1:29:36]} 5. Nxe4 {[%clk 1:32:29]}  Nbd7 {[%clk 1:29:58]} 6. Nf3 {[%clk 1:32:54]}  h6 {[%clk 1:30:21]} 7. Nxf6+ {[%clk 1:33:19]}  Nxf6 {[%clk 1:30:47]} 8. Be3 {[%clk 1:33:38]}  Bd6 {[%clk 1:31:11]} 9. Bd3 {[%clk 1:33:55]}  b6 {[%clk 1:31:35]} 10. Qe2 {[%clk 1:34:13]}  Bb7 {[%clk 1:31:55]} 11. O-O-O {[%clk 1:32:29]}  O-O {[%clk 1:32:19]} 12. Ne5 {[%clk 1:32:48]}  Nd5 {[%clk 1:32:44]} 13. Bd2 {[%clk 1:33:11]}  Qh4 {[%clk 1:33:07]} 14. Nf3 {[%clk 1:33:32]}  Qf6 {[%clk 1:33:01]} 15. Qe4 {[%clk 1:33:54]}  Qg6 {[%clk 1:33:24]} 16. Qxg6 {[%clk 1:34:18]}  fxg6 {[%clk 1:33:51]} 17. Be4 {[%clk 1:34:42]}  Rab8 {[%clk 1:32:29]} 18. Rhe1 {[%clk 1:34:58]}  g5 {[%clk 1:24:46]} 19. h3 {[%clk 1:34:20]}  b5 {[%clk 1:25:00]} 20. c3 {[%clk 1:32:44]}  c5 {[%clk 1:08:21]} 21. dxc5 {[%clk 1:18:08]}  Bxc5 {[%clk 1:08:20]} 22. Re2 {[%clk 1:18:27]}  b4 {[%clk 0:58:28]} 23. c4 {[%clk 1:02:56]}  Nf4 {[%clk 0:58:35]} 24. Bxf4 {[%clk 1:03:17]}  Rxf4 {[%clk 0:58:54]} 25. Nd2 {[%clk 1:03:35]}  Bxf2 {[%clk 0:47:07]} 26. Bxb7 {[%clk 0:48:26]}  Rxb7 {[%clk 0:46:14]} 27. Ne4 {[%clk 0:48:25]}  Bb6 {[%clk 0:45:08]} 28. Kc2 {[%clk 0:48:20]}  e5 {[%clk 0:39:49]} 29. Rd6 {[%clk 0:38:47]}  g4 {[%clk 0:30:44]} 30. hxg4 {[%clk 0:36:42]}  Rxg4 {[%clk 0:30:54]} 31. Kb3 {[%clk 0:36:51]}  Kf8 {[%clk 0:28:51]} 32. Rd5 {[%clk 0:22:19]}  Bd4 {[%clk 0:28:45]} 33. Rd8+ {[%clk 0:22:18]} 1-0


[Site "http://www.chessbomb.com"]

[Event "World Junior Chess Championship U20 2022"]
[White "Sonis, Francesco"]
[Black "Sokolovsky, Yahli"]
[WhiteFideId "895733"]
[BlackFideId "2820242"]
[WhiteElo "2531"]
[BlackElo "2416"]
[Result "1-0"]
[Round "04"]
[TimeControl "5400+30"]
[Date "2022.10.14"]
[WhiteClock "0:07:30"]
[BlackClock "0:01:50"]

1. Nf3 {[%clk 1:30:57]}  Nf6 {[%clk 1:30:35]} 2. c4 {[%clk 1:31:19]}  g6 {[%clk 1:30:55]} 3. g3 {[%clk 1:31:38]}  Bg7 {[%clk 1:31:20]} 4. Bg2 {[%clk 1:31:53]}  d6 {[%clk 1:31:40]} 5. d4 {[%clk 1:32:18]}  O-O {[%clk 1:32:03]} 6. Nc3 {[%clk 1:32:44]}  Nc6 {[%clk 1:31:59]} 7. O-O {[%clk 1:32:17]}  e5 {[%clk 1:32:23]} 8. dxe5 {[%clk 1:32:32]}  dxe5 {[%clk 1:32:40]} 9. Bg5 {[%clk 1:32:55]}  h6 {[%clk 1:32:50]} 10. Qxd8 {[%clk 1:33:06]}  Rxd8 {[%clk 1:33:07]} 11. Bxf6 {[%clk 1:33:30]}  Bxf6 {[%clk 1:33:28]} 12. Nd5 {[%clk 1:33:59]}  Kg7 {[%clk 1:33:31]} 13. Nxc7 {[%clk 1:34:21]}  Rb8 {[%clk 1:33:59]} 14. e4 {[%clk 1:34:32]}  Be7 {[%clk 1:33:55]} 15. Rfd1 {[%clk 1:26:12]}  Bg4 {[%clk 1:20:14]} 16. h3 {[%clk 1:15:47]}  Bxf3 {[%clk 1:20:32]} 17. Bxf3 {[%clk 1:16:08]}  Nd4 {[%clk 1:18:42]} 18. Kg2 {[%clk 1:14:36]}  b5 {[%clk 1:06:36]} 19. cxb5 {[%clk 1:10:51]}  Bd6 {[%clk 1:05:41]} 20. Nd5 {[%clk 0:58:15]}  Rxb5 {[%clk 1:05:58]} 21. Rd2 {[%clk 0:58:11]}  Rc8 {[%clk 1:01:30]} 22. Be2 {[%clk 0:54:11]}  Ra5 {[%clk 0:47:33]} 23. Bd1 {[%clk 0:54:15]}  Rac5 {[%clk 0:45:55]} 24. Ne3 {[%clk 0:40:47]}  Rc1 {[%clk 0:32:30]} 25. Rxc1 {[%clk 0:41:11]}  Rxc1 {[%clk 0:32:57]} 26. Ba4 {[%clk 0:41:37]}  Bc5 {[%clk 0:24:19]} 27. Rd1 {[%clk 0:32:25]}  Ne2 {[%clk 0:24:44]} 28. Rxc1 {[%clk 0:32:40]}  Nxc1 {[%clk 0:25:09]} 29. a3 {[%clk 0:33:08]}  Nd3 {[%clk 0:14:40]} 30. b4 {[%clk 0:28:14]}  Bd4 {[%clk 0:09:20]} 31. Kf1 {[%clk 0:26:37]}  Nc1 {[%clk 0:06:57]} 32. Bc6 {[%clk 0:16:57]}  Bb2 {[%clk 0:06:52]} 33. Nc4 {[%clk 0:16:15]}  Bd4 {[%clk 0:07:17]} 34. f3 {[%clk 0:14:56]}  f5 {[%clk 0:05:53]} 35. Ke1 {[%clk 0:11:51]}  f4 {[%clk 0:06:05]} 36. g4 {[%clk 0:07:17]}  Nd3+ {[%clk 0:06:31]} 37. Ke2 {[%clk 0:04:04]}  Nf2 {[%clk 0:06:55]} 38. h4 {[%clk 0:04:18]}  Nh3 {[%clk 0:04:41]} 39. Kf1 {[%clk 0:03:23]}  Ng1 {[%clk 0:03:58]} 40. Nxe5 {[%clk 0:03:10]}  Bxe5 {[%clk 0:03:56]} 41. Kxg1 {[%clk 0:03:35]}  g5 {[%clk 0:04:26]} 42. hxg5 {[%clk 0:33:25]}  hxg5 {[%clk 0:04:55]} 43. Kf1 {[%clk 0:33:50]}  Bb2 {[%clk 0:05:20]} 44. a4 {[%clk 0:34:19]}  Bc3 {[%clk 0:05:45]} 45. b5 {[%clk 0:34:46]}  Kf6 {[%clk 0:05:49]} 46. Ke2 {[%clk 0:35:12]}  Ke5 {[%clk 0:06:09]} 47. Kd3 {[%clk 0:35:39]}  Be1 {[%clk 0:05:41]} 48. Ba8 {[%clk 0:35:53]}  Ba5 {[%clk 0:05:54]} 49. Kc4 {[%clk 0:29:19]}  Kd6 {[%clk 0:06:20]} 50. Kd4 {[%clk 0:20:26]}  Bb6+ {[%clk 0:06:47]} 51. Kc3 {[%clk 0:20:51]}  Ba5+ {[%clk 0:06:04]} 52. Kc4 {[%clk 0:20:54]}  Be1 {[%clk 0:06:29]} 53. Bd5 {[%clk 0:16:03]}  Ba5 {[%clk 0:06:50]} 54. Bg8 {[%clk 0:11:33]}  Be1 {[%clk 0:07:13]} 55. e5+ {[%clk 0:08:56]}  Kxe5 {[%clk 0:07:39]} 56. Kc5 {[%clk 0:09:25]}  Bf2+ {[%clk 0:07:15]} 57. Kc6 {[%clk 0:09:08]}  Bb6 {[%clk 0:07:39]} 58. Kb7 {[%clk 0:08:50]}  Kd6 {[%clk 0:07:40]} 59. Bh7 {[%clk 0:07:54]}  Kd7 {[%clk 0:05:58]} 60. Bg6 {[%clk 0:08:16]}  Kd6 {[%clk 0:05:46]} 61. Bf5 {[%clk 0:08:37]}  Kc5 {[%clk 0:01:05]} 62. Ka6 {[%clk 0:09:02]}  Kb4 {[%clk 0:01:28]} 63. Bc2 {[%clk 0:09:30]}  Bc5 {[%clk 0:00:37]} 64. a5 {[%clk 0:09:16]}  Bd4 {[%clk 0:00:53]} 65. b6 {[%clk 0:08:47]}  axb6 {[%clk 0:01:19]} 66. axb6 {[%clk 0:09:13]}  Be5 {[%clk 0:01:40]} 67. b7 {[%clk 0:08:10]}  Bb8 {[%clk 0:02:07]} 68. Kb6 {[%clk 0:08:37]}  Kc3 {[%clk 0:02:34]} 69. Be4 {[%clk 0:08:33]}  Kb4 {[%clk 0:02:46]} 70. Bd5 {[%clk 0:06:38]}  Ka4 {[%clk 0:03:08]} 71. Bf7 {[%clk 0:07:03]}  Kb4 {[%clk 0:01:50]} 72. Be8 {[%clk 0:07:30]} 1-0


[Site "http://www.chessbomb.com"]

[Event "World Junior Chess Championship U20 2022"]
[White "Batsuren, Dambasuren"]
[Black "Isik, Alparslan"]
[WhiteFideId "4902920"]
[BlackFideId "34506896"]
[WhiteElo "2522"]
[BlackElo "2377"]
[Result "1/2-1/2"]
[Round "04"]
[TimeControl "5400+30"]
[Date "2022.10.14"]
[WhiteClock "0:26:21"]
[BlackClock "0:35:25"]

1. d4 {[%clk 1:30:58]}  d5 {[%clk 1:30:26]} 2. c4 {[%clk 1:31:08]}  e6 {[%clk 1:30:35]} 3. Nf3 {[%clk 1:30:40]}  Nf6 {[%clk 1:30:56]} 4. g3 {[%clk 1:30:08]}  Bb4+ {[%clk 1:31:11]} 5. Bd2 {[%clk 1:30:23]}  Bd6 {[%clk 1:31:30]} 6. Bg2 {[%clk 1:28:28]}  c6 {[%clk 1:31:21]} 7. Qc2 {[%clk 1:25:16]}  Nbd7 {[%clk 1:31:42]} 8. O-O {[%clk 1:25:05]}  O-O {[%clk 1:32:04]} 9. Bg5 {[%clk 1:20:26]}  h6 {[%clk 1:31:33]} 10. Bxf6 {[%clk 1:20:25]}  Nxf6 {[%clk 1:29:41]} 11. Nbd2 {[%clk 1:20:41]}  b6 {[%clk 1:28:46]} 12. Ne1 {[%clk 1:12:34]}  c5 {[%clk 1:21:23]} 13. dxc5 {[%clk 1:08:46]}  Bxc5 {[%clk 1:20:15]} 14. Nd3 {[%clk 1:08:29]}  Be7 {[%clk 1:19:09]} 15. cxd5 {[%clk 0:58:47]}  Nxd5 {[%clk 1:18:30]} 16. Nf4 {[%clk 0:58:52]}  Bb7 {[%clk 1:16:10]} 17. Nxd5 {[%clk 0:57:48]}  Bxd5 {[%clk 1:16:17]} 18. Rfd1 {[%clk 0:57:29]}  Bxg2 {[%clk 1:13:25]} 19. Kxg2 {[%clk 0:57:35]}  Rc8 {[%clk 1:06:14]} 20. Qa4 {[%clk 0:56:02]}  Rc7 {[%clk 1:05:20]} 21. Nf3 {[%clk 0:55:06]}  Qe8 {[%clk 1:00:09]} 22. Qb3 {[%clk 0:53:11]}  Bf6 {[%clk 0:59:32]} 23. Rac1 {[%clk 0:51:44]}  Qc8 {[%clk 0:59:27]} 24. Rxc7 {[%clk 0:50:13]}  Qxc7 {[%clk 0:59:54]} 25. Qb5 {[%clk 0:48:49]}  Rc8 {[%clk 0:53:22]} 26. b3 {[%clk 0:46:25]}  Qc6 {[%clk 0:52:44]} 27. Qxc6 {[%clk 0:33:36]}  Rxc6 {[%clk 0:53:08]} 28. Rd7 {[%clk 0:33:57]}  Rc2 {[%clk 0:50:53]} 29. Rd2 {[%clk 0:34:10]}  Rxd2 {[%clk 0:48:04]} 30. Nxd2 {[%clk 0:34:33]}  Kf8 {[%clk 0:48:20]} 31. Kf3 {[%clk 0:33:50]}  Ke7 {[%clk 0:48:36]} 32. Ke4 {[%clk 0:33:34]}  Kd6 {[%clk 0:44:47]} 33. Kd3 {[%clk 0:33:29]}  Kc6 {[%clk 0:43:13]} 34. h4 {[%clk 0:28:13]}  g6 {[%clk 0:36:45]} 35. a4 {[%clk 0:26:21]}  a6 {[%clk 0:35:25]} 36. Ke4 {[%clk 0:26:21]} 1/2-1/2


[Site "http://www.chessbomb.com"]